[Event "Titled Tuesday Blitz December 20 Late 2022"]
[White "reevecanada"]
[Black "Sztokbant, Bernardo Vainzoff"]
[BlackFideId "2115956"]
[WhiteElo "2164"]
[BlackElo "2222"]
[Result "1/2-1/2"]
[Round "02"]
[TimeControl "180+1"]
[Date "2022.12.21"]
[WhiteClock "0:00:31"]
[BlackClock "0:00:03"]

1. e4 {[%clk 0:02:59]}  c5 {[%clk 0:02:59]} 2. Nf3 {[%clk 0:02:59]}  d6 {[%clk 0:02:59]} 3. Bb5+ {[%clk 0:02:58]}  Bd7 {[%clk 0:02:59]} 4. Bxd7+ {[%clk 0:02:58]}  Qxd7 {[%clk 0:02:59]} 5. O-O {[%clk 0:02:58]}  Nc6 {[%clk 0:03:00]} 6. Re1 {[%clk 0:02:59]}  e6 {[%clk 0:02:58]} 7. c3 {[%clk 0:02:59]}  Nf6 {[%clk 0:02:57]} 8. d4 {[%clk 0:02:58]}  cxd4 {[%clk 0:02:56]} 9. cxd4 {[%clk 0:02:59]}  Be7 {[%clk 0:02:56]} 10. d5 {[%clk 0:02:59]}  Ne5 {[%clk 0:02:51]} 11. dxe6 {[%clk 0:02:58]}  Qxe6 {[%clk 0:02:44]} 12. Nd4 {[%clk 0:02:56]}  Qd7 {[%clk 0:02:42]} 13. f4 {[%clk 0:02:54]}  Nc6 {[%clk 0:02:30]} 14. Nf5 {[%clk 0:02:48]}  O-O {[%clk 0:02:19]} 15. Qf3 {[%clk 0:02:46]}  Rfe8 {[%clk 0:02:13]} 16. g4 {[%clk 0:02:44]}  Bf8 {[%clk 0:02:03]} 17. Nc3 {[%clk 0:02:41]}  g6 {[%clk 0:01:41]} 18. Ne3 {[%clk 0:02:38]}  Nd4 {[%clk 0:01:38]} 19. Qd1 {[%clk 0:02:38]}  Ne6 {[%clk 0:01:25]} 20. Ned5 {[%clk 0:02:35]}  Nxd5 {[%clk 0:01:26]} 21. Nxd5 {[%clk 0:02:36]}  Bg7 {[%clk 0:01:26]} 22. f5 {[%clk 0:02:35]}  Nc5 {[%clk 0:01:24]} 23. Bh6 {[%clk 0:02:31]}  Be5 {[%clk 0:00:50]} 24. Qf3 {[%clk 0:02:24]}  Na4 {[%clk 0:00:22]} 25. Rab1 {[%clk 0:02:09]}  Nb6 {[%clk 0:00:22]} 26. Ne3 {[%clk 0:02:01]}  Rac8 {[%clk 0:00:20]} 27. Kh1 {[%clk 0:02:00]}  Nc4 {[%clk 0:00:20]} 28. Nd5 {[%clk 0:01:59]}  Nb6 {[%clk 0:00:19]} 29. Ne3 {[%clk 0:01:58]}  Nc4 {[%clk 0:00:19]} 30. Nd5 {[%clk 0:01:55]}  Nb6 {[%clk 0:00:19]} 31. Rbd1 {[%clk 0:01:50]}  Nxd5 {[%clk 0:00:18]} 32. Rxd5 {[%clk 0:01:51]}  Rc5 {[%clk 0:00:16]} 33. Rd2 {[%clk 0:01:36]}  Qc6 {[%clk 0:00:12]} 34. Bf4 {[%clk 0:01:33]}  Bxf4 {[%clk 0:00:11]} 35. Qxf4 {[%clk 0:01:34]}  Rce5 {[%clk 0:00:12]} 36. Rde2 {[%clk 0:01:31]}  d5 {[%clk 0:00:08]} 37. f6 {[%clk 0:01:18]}  dxe4 {[%clk 0:00:06]} 38. Rf1 {[%clk 0:01:11]}  e3+ {[%clk 0:00:06]} 39. Kg1 {[%clk 0:01:11]}  g5 {[%clk 0:00:06]} 40. Qg3 {[%clk 0:01:10]}  Re4 {[%clk 0:00:06]} 41. Qg2 {[%clk 0:01:08]}  Qe6 {[%clk 0:00:06]} 42. h3 {[%clk 0:01:07]}  Rd8 {[%clk 0:00:06]} 43. Qf3 {[%clk 0:00:59]}  h6 {[%clk 0:00:06]} 44. Rfe1 {[%clk 0:00:58]}  Re8 {[%clk 0:00:05]} 45. Kg2 {[%clk 0:00:57]}  Rf4 {[%clk 0:00:05]} 46. Qxb7 {[%clk 0:00:55]}  Qxf6 {[%clk 0:00:04]} 47. Qd7 {[%clk 0:00:44]}  Rf2+ {[%clk 0:00:05]} 48. Kg1 {[%clk 0:00:38]}  Re7 {[%clk 0:00:04]} 49. Qd8+ {[%clk 0:00:36]}  Kg7 {[%clk 0:00:05]} 50. Rxe3 {[%clk 0:00:34]}  Rxe3 {[%clk 0:00:05]} 51. Qxf6+ {[%clk 0:00:33]}  Kxf6 {[%clk 0:00:03]} 52. Rxe3 {[%clk 0:00:34]}  Rxb2 {[%clk 0:00:03]} 53. Ra3 {[%clk 0:00:35]}  Rb7 {[%clk 0:00:02]} 54. Ra6+ {[%clk 0:00:35]}  Kg7 {[%clk 0:00:02]} 55. Kf2 {[%clk 0:00:36]}  Re7 {[%clk 0:00:03]} 56. a4 {[%clk 0:00:35]}  h5 {[%clk 0:00:03]} 57. gxh5 {[%clk 0:00:35]}  Rd7 {[%clk 0:00:04]} 58. Kg3 {[%clk 0:00:35]}  Rd3+ {[%clk 0:00:03]} 59. Kg4 {[%clk 0:00:35]}  f6 {[%clk 0:00:03]} 60. Rxa7+ {[%clk 0:00:34]}  Kh6 {[%clk 0:00:03]} 61. Ra6 {[%clk 0:00:35]}  Rd4+ {[%clk 0:00:03]} 62. Kf5 {[%clk 0:00:35]}  Rf4+ {[%clk 0:00:03]} 63. Ke6 {[%clk 0:00:34]}  Kxh5 {[%clk 0:00:04]} 64. Kf7 {[%clk 0:00:33]}  Kh4 {[%clk 0:00:04]} 65. Rxf6 {[%clk 0:00:33]}  Rxa4 {[%clk 0:00:03]} 66. Rh6+ {[%clk 0:00:33]}  Kg3 {[%clk 0:00:03]} 67. Kg6 {[%clk 0:00:32]}  Rh4 {[%clk 0:00:02]} 68. Kxg5 {[%clk 0:00:30]}  Rxh6 {[%clk 0:00:03]} 69. Kxh6 {[%clk 0:00:31]}  Kxh3 {[%clk 0:00:03]} 1/2-1/2


[Site "https://www.chess.com"]

[Event "Titled Tuesday Blitz December 20 Late 2022"]
[White "Alex_Sahakyan2006"]
[Black "Kleinman, Michael"]
[BlackFideId "2609479"]
[WhiteElo "2623"]
[BlackElo "2287"]
[Result "1-0"]
[Round "03"]
[TimeControl "180+1"]
[Date "2022.12.21"]
[WhiteClock "0:01:36"]
[BlackClock "0:00:37"]

1. c4 {[%clk 0:03:00]}  c5 {[%clk 0:02:59]} 2. Nf3 {[%clk 0:02:58]}  Nc6 {[%clk 0:03:00]} 3. Nc3 {[%clk 0:02:58]}  Nf6 {[%clk 0:03:00]} 4. e3 {[%clk 0:02:58]}  e6 {[%clk 0:03:00]} 5. d4 {[%clk 0:02:57]}  d5 {[%clk 0:03:01]} 6. a3 {[%clk 0:02:58]}  a6 {[%clk 0:03:01]} 7. dxc5 {[%clk 0:02:56]}  Bxc5 {[%clk 0:03:00]} 8. b4 {[%clk 0:02:56]}  Be7 {[%clk 0:02:58]} 9. cxd5 {[%clk 0:02:55]}  exd5 {[%clk 0:02:58]} 10. Bb2 {[%clk 0:02:55]}  O-O {[%clk 0:02:58]} 11. Bd3 {[%clk 0:02:54]}  Bg4 {[%clk 0:02:55]} 12. Ne2 {[%clk 0:02:53]}  Rc8 {[%clk 0:02:52]} 13. h3 {[%clk 0:02:47]}  Bh5 {[%clk 0:02:52]} 14. Nf4 {[%clk 0:02:46]}  Bg6 {[%clk 0:02:50]} 15. Nxg6 {[%clk 0:02:41]}  hxg6 {[%clk 0:02:51]} 16. O-O {[%clk 0:02:39]}  Re8 {[%clk 0:02:47]} 17. Qb3 {[%clk 0:02:37]}  Ne4 {[%clk 0:02:31]} 18. Rad1 {[%clk 0:02:32]}  Nf6 {[%clk 0:02:21]} 19. Bb1 {[%clk 0:02:26]}  Qd6 {[%clk 0:02:19]} 20. e4 {[%clk 0:02:23]}  Bd8 {[%clk 0:01:57]} 21. exd5 {[%clk 0:02:13]}  Ne7 {[%clk 0:01:50]} 22. Be5 {[%clk 0:02:10]}  Qd7 {[%clk 0:01:50]} 23. d6 {[%clk 0:02:03]}  Nc6 {[%clk 0:01:46]} 24. Bb2 {[%clk 0:01:55]}  Re6 {[%clk 0:01:43]} 25. Ng5 {[%clk 0:01:53]}  Re2 {[%clk 0:01:26]} 26. Bxg6 {[%clk 0:01:50]}  Bb6 {[%clk 0:00:56]} 27. Bxf7+ {[%clk 0:01:45]}  Kh8 {[%clk 0:00:55]} 28. Bxf6 {[%clk 0:01:37]}  gxf6 {[%clk 0:00:53]} 29. Qf3 {[%clk 0:01:37]}  fxg5 {[%clk 0:00:44]} 30. Qh5+ {[%clk 0:01:37]}  Kg7 {[%clk 0:00:40]} 31. Qg6+ {[%clk 0:01:38]}  Kf8 {[%clk 0:00:37]} 32. Qg8# {[%clk 0:01:36]} 1-0


[Site "https://www.chess.com"]

[Event "Titled Tuesday Blitz December 20 Late 2022"]
[White "Andreikin, Dmitry"]
[Black "Wieczorek, Oskar"]
[WhiteFideId "4158814"]
[BlackFideId "1133950"]
[WhiteElo "2735"]
[BlackElo "2415"]
[Result "1-0"]
[Round "03"]
[TimeControl "180+1"]
[Date "2022.12.20"]
[WhiteClock "0:00:46"]
[BlackClock "0:00:13"]

1. Nf3 {[%clk 0:03:00]}  Nf6 {[%clk 0:02:56]} 2. c4 {[%clk 0:03:00]}  c5 {[%clk 0:02:56]} 3. Nc3 {[%clk 0:02:58]}  Nc6 {[%clk 0:02:56]} 4. g3 {[%clk 0:02:58]}  d5 {[%clk 0:02:55]} 5. cxd5 {[%clk 0:02:58]}  Nxd5 {[%clk 0:02:56]} 6. Bg2 {[%clk 0:02:58]}  Nc7 {[%clk 0:02:57]} 7. a3 {[%clk 0:02:56]}  e5 {[%clk 0:02:56]} 8. b4 {[%clk 0:02:56]}  f6 {[%clk 0:02:32]} 9. b5 {[%clk 0:02:55]}  Nd4 {[%clk 0:02:32]} 10. Rb1 {[%clk 0:02:54]}  Be7 {[%clk 0:02:30]} 11. e3 {[%clk 0:02:52]}  Nxf3+ {[%clk 0:02:23]} 12. Bxf3 {[%clk 0:02:52]}  O-O {[%clk 0:02:23]} 13. O-O {[%clk 0:02:52]}  Rb8 {[%clk 0:02:18]} 14. Qa4 {[%clk 0:02:45]}  Bf5 {[%clk 0:02:10]} 15. b6 {[%clk 0:02:29]}  axb6 {[%clk 0:02:06]} 16. Rxb6 {[%clk 0:02:28]}  Bd3 {[%clk 0:02:01]} 17. Re1 {[%clk 0:02:25]}  Ba6 {[%clk 0:01:43]} 18. Rd1 {[%clk 0:01:55]}  Ne8 {[%clk 0:01:06]} 19. Re6 {[%clk 0:01:26]}  Nc7 {[%clk 0:00:47]} 20. Rb6 {[%clk 0:01:26]}  Ne8 {[%clk 0:00:48]} 21. Nd5 {[%clk 0:01:10]}  Nd6 {[%clk 0:00:33]} 22. d4 {[%clk 0:01:05]}  cxd4 {[%clk 0:00:33]} 23. exd4 {[%clk 0:01:05]}  e4 {[%clk 0:00:33]} 24. Bg2 {[%clk 0:00:57]}  f5 {[%clk 0:00:16]} 25. Bf4 {[%clk 0:00:51]}  Nc4 {[%clk 0:00:13]} 26. Nxe7+ {[%clk 0:00:46]}  Qxe7 {[%clk 0:00:12]} 27. Rxa6 {[%clk 0:00:46]}  Nb2 {[%clk 0:00:13]} 1-0


[Site "https://www.chess.com"]

[Event "Titled Tuesday Blitz December 20 Late 2022"]
[White "Baches Garcia, Guillermo"]
[Black "Bas Mas, Jose Joaquin"]
[WhiteFideId "2209764"]
[BlackFideId "22219064"]
[WhiteElo "2475"]
[BlackElo "2233"]
[Result "1-0"]
[Round "03"]
[TimeControl "180+1"]
[Date "2022.12.21"]
[WhiteClock "0:00:13"]
[BlackClock "0:00:05"]

1. e4 {[%clk 0:03:00]}  c5 {[%clk 0:02:57]} 2. Nf3 {[%clk 0:03:00]}  d6 {[%clk 0:02:56]} 3. d4 {[%clk 0:03:00]}  cxd4 {[%clk 0:02:57]} 4. Nxd4 {[%clk 0:03:01]}  Nf6 {[%clk 0:02:56]} 5. Nc3 {[%clk 0:03:02]}  g6 {[%clk 0:02:54]} 6. g3 {[%clk 0:03:01]}  Bg7 {[%clk 0:02:54]} 7. Bg2 {[%clk 0:03:01]}  O-O {[%clk 0:02:51]} 8. O-O {[%clk 0:03:01]}  Nc6 {[%clk 0:02:39]} 9. Nde2 {[%clk 0:03:01]}  Be6 {[%clk 0:02:34]} 10. Nd5 {[%clk 0:03:01]}  Rc8 {[%clk 0:02:28]} 11. a4 {[%clk 0:02:56]}  Na5 {[%clk 0:02:11]} 12. Ra2 {[%clk 0:02:46]}  Nxd5 {[%clk 0:02:00]} 13. exd5 {[%clk 0:02:46]}  Bf5 {[%clk 0:02:01]} 14. b3 {[%clk 0:02:39]}  b6 {[%clk 0:01:47]} 15. c4 {[%clk 0:02:28]}  Bg4 {[%clk 0:01:38]} 16. h3 {[%clk 0:02:21]}  Bd7 {[%clk 0:01:29]} 17. Be3 {[%clk 0:02:13]}  Nb7 {[%clk 0:01:28]} 18. Nd4 {[%clk 0:02:10]}  a5 {[%clk 0:01:20]} 19. Re1 {[%clk 0:01:55]}  Nc5 {[%clk 0:01:19]} 20. Rae2 {[%clk 0:01:54]}  Re8 {[%clk 0:01:06]} 21. Kh2 {[%clk 0:01:35]}  e5 {[%clk 0:00:50]} 22. dxe6 {[%clk 0:01:29]}  fxe6 {[%clk 0:00:50]} 23. Qc2 {[%clk 0:01:14]}  e5 {[%clk 0:00:34]} 24. Bd5+ {[%clk 0:00:56]}  Kh8 {[%clk 0:00:34]} 25. Nb5 {[%clk 0:00:56]}  Bf5 {[%clk 0:00:31]} 26. Qd1 {[%clk 0:00:47]}  Nd3 {[%clk 0:00:27]} 27. Rf1 {[%clk 0:00:40]}  Nb4 {[%clk 0:00:25]} 28. Bg2 {[%clk 0:00:36]}  Bd3 {[%clk 0:00:23]} 29. Rd2 {[%clk 0:00:36]}  Bxf1 {[%clk 0:00:21]} 30. Bxf1 {[%clk 0:00:32]}  Bf8 {[%clk 0:00:16]} 31. Bg2 {[%clk 0:00:31]}  Qf6 {[%clk 0:00:15]} 32. Bxb6 {[%clk 0:00:28]}  Be7 {[%clk 0:00:12]} 33. Bxa5 {[%clk 0:00:26]}  Nc6 {[%clk 0:00:11]} 34. Bc3 {[%clk 0:00:26]}  Rf8 {[%clk 0:00:10]} 35. Bb2 {[%clk 0:00:19]}  Qg5 {[%clk 0:00:10]} 36. Nc3 {[%clk 0:00:17]}  Nd4 {[%clk 0:00:09]} 37. Ne4 {[%clk 0:00:15]}  Qf5 {[%clk 0:00:05]} 38. Rxd4 {[%clk 0:00:14]}  exd4 {[%clk 0:00:05]} 39. Qxd4+ {[%clk 0:00:14]}  Kg8 {[%clk 0:00:05]} 40. Qg7# {[%clk 0:00:13]} 1-0


[Site "https://www.chess.com"]

[Event "Titled Tuesday Blitz December 20 Late 2022"]
[White "Bambino Filho, Antonio Carlos"]
[Black "Ardila, Oscar Humberto"]
[WhiteFideId "2113163"]
[BlackFideId "4404742"]
[WhiteElo "2404"]
[BlackElo "1961"]
[Result "1-0"]
[Round "03"]
[TimeControl "180+1"]
[Date "2022.12.21"]
[WhiteClock "0:00:14"]
[BlackClock "0:00:10"]

1. e4 {[%clk 0:02:54]}  e5 {[%clk 0:02:59]} 2. Nf3 {[%clk 0:02:54]}  Nc6 {[%clk 0:02:59]} 3. Bc4 {[%clk 0:02:55]}  Nf6 {[%clk 0:02:58]} 4. d3 {[%clk 0:02:55]}  Bc5 {[%clk 0:02:53]} 5. c3 {[%clk 0:02:54]}  d6 {[%clk 0:02:50]} 6. O-O {[%clk 0:02:53]}  O-O {[%clk 0:02:49]} 7. a4 {[%clk 0:02:53]}  a6 {[%clk 0:02:46]} 8. Nbd2 {[%clk 0:02:54]}  Qe7 {[%clk 0:02:43]} 9. h3 {[%clk 0:02:52]}  Be6 {[%clk 0:02:39]} 10. Re1 {[%clk 0:02:48]}  Bxc4 {[%clk 0:02:36]} 11. Nxc4 {[%clk 0:02:49]}  b5 {[%clk 0:02:35]} 12. Ne3 {[%clk 0:02:46]}  Bxe3 {[%clk 0:02:25]} 13. Bxe3 {[%clk 0:02:45]}  b4 {[%clk 0:02:22]} 14. Bg5 {[%clk 0:02:35]}  h6 {[%clk 0:02:22]} 15. Bh4 {[%clk 0:02:35]}  Qe6 {[%clk 0:02:22]} 16. a5 {[%clk 0:02:23]}  Nh5 {[%clk 0:02:16]} 17. Qa4 {[%clk 0:02:19]}  Na7 {[%clk 0:02:05]} 18. Qxb4 {[%clk 0:02:13]}  Rab8 {[%clk 0:02:00]} 19. Qa3 {[%clk 0:02:13]}  Rb3 {[%clk 0:01:57]} 20. Qa2 {[%clk 0:02:08]}  Rfb8 {[%clk 0:01:56]} 21. Re2 {[%clk 0:01:50]}  Nf4 {[%clk 0:01:55]} 22. Rd2 {[%clk 0:01:51]}  g5 {[%clk 0:01:40]} 23. Bg3 {[%clk 0:01:51]}  Kg7 {[%clk 0:01:40]} 24. Bxf4 {[%clk 0:01:50]}  gxf4 {[%clk 0:01:40]} 25. d4 {[%clk 0:01:46]}  f6 {[%clk 0:01:32]} 26. Kh1 {[%clk 0:01:29]}  Qc4 {[%clk 0:01:31]} 27. dxe5 {[%clk 0:01:20]}  fxe5 {[%clk 0:01:30]} 28. Re1 {[%clk 0:01:16]}  Qb5 {[%clk 0:01:27]} 29. Nh4 {[%clk 0:01:16]}  Nc6 {[%clk 0:01:22]} 30. Nf5+ {[%clk 0:01:14]}  Kf6 {[%clk 0:01:20]} 31. Qa1 {[%clk 0:00:54]}  Rxb2 {[%clk 0:01:08]} 32. Rxb2 {[%clk 0:00:54]}  Qxb2 {[%clk 0:01:08]} 33. Qa4 {[%clk 0:00:44]}  Qb5 {[%clk 0:01:03]} 34. Qa2 {[%clk 0:00:42]}  Qb3 {[%clk 0:01:03]} 35. Qd2 {[%clk 0:00:38]}  Ne7 {[%clk 0:00:55]} 36. Nxh6 {[%clk 0:00:34]}  Rh8 {[%clk 0:00:47]} 37. Ng4+ {[%clk 0:00:34]}  Kg5 {[%clk 0:00:46]} 38. g3 {[%clk 0:00:32]}  Ng6 {[%clk 0:00:43]} 39. Kg2 {[%clk 0:00:24]}  Qe6 {[%clk 0:00:42]} 40. Qe2 {[%clk 0:00:21]}  Rf8 {[%clk 0:00:29]} 41. h4+ {[%clk 0:00:18]}  Kh5 {[%clk 0:00:29]} 42. Nxe5+ {[%clk 0:00:17]}  Kh6 {[%clk 0:00:29]} 43. Nf3 {[%clk 0:00:10]}  Qg4 {[%clk 0:00:25]} 44. Qd2 {[%clk 0:00:10]}  Kg7 {[%clk 0:00:19]} 45. Ng5 {[%clk 0:00:09]}  f3+ {[%clk 0:00:13]} 46. Kh2 {[%clk 0:00:06]}  Nxh4 {[%clk 0:00:13]} 47. Qd4+ {[%clk 0:00:06]}  Kg6 {[%clk 0:00:13]} 48. Nh3 {[%clk 0:00:05]}  Ng2 {[%clk 0:00:09]} 49. Rg1 {[%clk 0:00:05]}  Rh8 {[%clk 0:00:08]} 50. Qxh8 {[%clk 0:00:05]}  Kf7 {[%clk 0:00:03]} 51. Rxg2 {[%clk 0:00:05]}  fxg2 {[%clk 0:00:03]} 52. Kxg2 {[%clk 0:00:06]}  Ke7 {[%clk 0:00:03]} 53. Qh4+ {[%clk 0:00:05]}  Qxh4 {[%clk 0:00:03]} 54. gxh4 {[%clk 0:00:06]}  c5 {[%clk 0:00:03]} 55. Kf3 {[%clk 0:00:06]}  Kf6 {[%clk 0:00:04]} 56. Ke2 {[%clk 0:00:07]}  Ke5 {[%clk 0:00:03]} 57. Ke3 {[%clk 0:00:06]}  d5 {[%clk 0:00:04]} 58. f4+ {[%clk 0:00:07]}  Kd6 {[%clk 0:00:04]} 59. exd5 {[%clk 0:00:08]}  Kxd5 {[%clk 0:00:04]} 60. Kd3 {[%clk 0:00:09]}  c4+ {[%clk 0:00:05]} 61. Ke3 {[%clk 0:00:09]}  Kc5 {[%clk 0:00:05]} 62. h5 {[%clk 0:00:10]}  Kb5 {[%clk 0:00:06]} 63. h6 {[%clk 0:00:10]}  Kxa5 {[%clk 0:00:07]} 64. h7 {[%clk 0:00:11]}  Kb5 {[%clk 0:00:08]} 65. h8=Q {[%clk 0:00:12]}  a5 {[%clk 0:00:09]} 66. Qe5+ {[%clk 0:00:12]}  Ka4 {[%clk 0:00:09]} 67. Qb8 {[%clk 0:00:12]}  Ka3 {[%clk 0:00:08]} 68. Kd2 {[%clk 0:00:13]}  a4 {[%clk 0:00:09]} 69. Kc1 {[%clk 0:00:14]}  Ka2 {[%clk 0:00:10]} 70. Qb2# {[%clk 0:00:14]} 1-0


[Site "https://www.chess.com"]

[Event "Titled Tuesday Blitz December 20 Late 2022"]
[White "Bobadilla Viera, Jorge Samuel"]
[Black "Delorme, Axel"]
[WhiteFideId "3906353"]
[BlackFideId "632023"]
[WhiteElo "2182"]
[BlackElo "2478"]
[Result "0-1"]
[Round "03"]
[TimeControl "180+1"]
[Date "2022.12.21"]
[WhiteClock "0:01:03"]
[BlackClock "0:00:05"]

1. d4 {[%clk 0:03:00]}  d5 {[%clk 0:02:59]} 2. Nf3 {[%clk 0:03:00]}  e6 {[%clk 0:02:59]} 3. Bf4 {[%clk 0:03:01]}  c5 {[%clk 0:02:59]} 4. e3 {[%clk 0:03:00]}  Nc6 {[%clk 0:03:00]} 5. Nbd2 {[%clk 0:02:59]}  Nf6 {[%clk 0:03:00]} 6. c3 {[%clk 0:02:58]}  Nh5 {[%clk 0:03:00]} 7. Be5 {[%clk 0:02:55]}  f6 {[%clk 0:02:54]} 8. Bg3 {[%clk 0:02:45]}  cxd4 {[%clk 0:02:44]} 9. exd4 {[%clk 0:02:45]}  Be7 {[%clk 0:02:26]} 10. Bd3 {[%clk 0:02:42]}  Qb6 {[%clk 0:02:14]} 11. Qc2 {[%clk 0:02:36]}  Nxg3 {[%clk 0:02:04]} 12. hxg3 {[%clk 0:02:36]}  f5 {[%clk 0:02:04]} 13. O-O {[%clk 0:02:18]}  Bd7 {[%clk 0:02:00]} 14. Rfe1 {[%clk 0:02:17]}  O-O {[%clk 0:01:57]} 15. Ne5 {[%clk 0:02:12]}  Nxe5 {[%clk 0:01:57]} 16. Rxe5 {[%clk 0:02:12]}  Rac8 {[%clk 0:01:48]} 17. Nf3 {[%clk 0:02:11]}  Bf6 {[%clk 0:01:41]} 18. Re2 {[%clk 0:02:11]}  Rfe8 {[%clk 0:01:36]} 19. Rae1 {[%clk 0:02:10]}  Qd6 {[%clk 0:01:11]} 20. Qb3 {[%clk 0:02:00]}  b5 {[%clk 0:01:01]} 21. Bxb5 {[%clk 0:01:42]}  Rb8 {[%clk 0:01:01]} 22. Bxd7 {[%clk 0:01:43]}  Rxb3 {[%clk 0:00:33]} 23. Bxe6+ {[%clk 0:01:43]}  Kf8 {[%clk 0:00:31]} 24. axb3 {[%clk 0:01:43]}  f4 {[%clk 0:00:26]} 25. gxf4 {[%clk 0:01:40]}  Qxf4 {[%clk 0:00:24]} 26. Bxd5 {[%clk 0:01:39]}  Rxe2 {[%clk 0:00:25]} 27. Rxe2 {[%clk 0:01:40]}  Qc1+ {[%clk 0:00:24]} 28. Ne1 {[%clk 0:01:40]}  h5 {[%clk 0:00:22]} 29. b4 {[%clk 0:01:39]}  h4 {[%clk 0:00:22]} 30. Kf1 {[%clk 0:01:38]}  Qg5 {[%clk 0:00:18]} 31. Nf3 {[%clk 0:01:37]}  Qxd5 {[%clk 0:00:18]} 32. Ke1 {[%clk 0:01:30]}  Qa2 {[%clk 0:00:18]} 33. Rd2 {[%clk 0:01:30]}  Qb1+ {[%clk 0:00:17]} 34. Ke2 {[%clk 0:01:30]}  Qe4+ {[%clk 0:00:17]} 35. Kf1 {[%clk 0:01:30]}  h3 {[%clk 0:00:18]} 36. Kg1 {[%clk 0:01:26]}  Qg4 {[%clk 0:00:17]} 37. Ne1 {[%clk 0:01:25]}  Bg5 {[%clk 0:00:16]} 38. f3 {[%clk 0:01:11]}  Qg3 {[%clk 0:00:12]} 39. Re2 {[%clk 0:01:10]}  h2+ {[%clk 0:00:12]} 40. Kh1 {[%clk 0:01:10]}  Bd2 {[%clk 0:00:08]} 41. Nd3 {[%clk 0:01:08]}  Bh6 {[%clk 0:00:05]} 42. d5 {[%clk 0:01:08]}  Qg5 {[%clk 0:00:04]} 43. c4 {[%clk 0:01:06]}  Qg6 {[%clk 0:00:03]} 44. Ne5 {[%clk 0:00:55]}  Qb1+ {[%clk 0:00:03]} 45. Kxh2 {[%clk 0:00:56]}  Bf4+ {[%clk 0:00:04]} 46. Kh3 {[%clk 0:00:55]}  Bxe5 {[%clk 0:00:04]} 47. Rxe5 {[%clk 0:00:56]}  Qxb2 {[%clk 0:00:04]} 48. Rf5+ {[%clk 0:00:57]}  Kg8 {[%clk 0:00:04]} 49. Rf4 {[%clk 0:00:58]}  Qxb4 {[%clk 0:00:04]} 50. Re4 {[%clk 0:00:59]}  Qd6 {[%clk 0:00:04]} 51. Kg4 {[%clk 0:00:59]}  Qd7+ {[%clk 0:00:04]} 52. Kf4 {[%clk 0:00:59]}  a5 {[%clk 0:00:05]} 53. Ke3 {[%clk 0:01:00]}  a4 {[%clk 0:00:06]} 54. Kd4 {[%clk 0:01:01]}  a3 {[%clk 0:00:06]} 55. Re2 {[%clk 0:01:01]}  Qa7+ {[%clk 0:00:05]} 56. c5 {[%clk 0:01:02]}  a2 {[%clk 0:00:06]} 57. Rxa2 {[%clk 0:01:02]}  Qxa2 {[%clk 0:00:06]} 58. d6 {[%clk 0:01:03]}  Qa8 {[%clk 0:00:05]} 0-1


[Site "https://www.chess.com"]

[Event "Titled Tuesday Blitz December 20 Late 2022"]
[White "Bortnyk, Mykola"]
[Black "Olsen, Filip Boe"]
[WhiteFideId "14120836"]
[BlackFideId "1440640"]
[WhiteElo "2582"]
[BlackElo "2333"]
[Result "1-0"]
[Round "03"]
[TimeControl "180+1"]
[Date "2022.12.20"]
[WhiteClock "0:01:02"]
[BlackClock "0:00:17"]

1. e4 {[%clk 0:03:00]}  c6 {[%clk 0:03:00]} 2. d4 {[%clk 0:03:01]}  d5 {[%clk 0:03:01]} 3. exd5 {[%clk 0:03:01]}  cxd5 {[%clk 0:03:02]} 4. c4 {[%clk 0:03:02]}  Nf6 {[%clk 0:03:02]} 5. Nc3 {[%clk 0:03:03]}  Nc6 {[%clk 0:02:59]} 6. Bg5 {[%clk 0:03:01]}  Be6 {[%clk 0:02:57]} 7. Be2 {[%clk 0:03:01]}  g6 {[%clk 0:02:55]} 8. Bf3 {[%clk 0:02:59]}  Na5 {[%clk 0:01:39]} 9. cxd5 {[%clk 0:02:49]}  Nxd5 {[%clk 0:01:36]} 10. Nge2 {[%clk 0:02:37]}  Bg7 {[%clk 0:01:26]} 11. Qa4+ {[%clk 0:02:23]}  Nc6 {[%clk 0:01:25]} 12. Qb5 {[%clk 0:02:16]}  Nb4 {[%clk 0:00:52]} 13. Bxc6+ {[%clk 0:02:06]}  Nxc6 {[%clk 0:00:49]} 14. d5 {[%clk 0:02:06]}  a6 {[%clk 0:00:42]} 15. Qxb7 {[%clk 0:01:56]}  Na5 {[%clk 0:00:42]} 16. Qb4 {[%clk 0:01:47]}  Bf5 {[%clk 0:00:35]} 17. d6 {[%clk 0:01:13]}  Nc6 {[%clk 0:00:27]} 18. dxe7 {[%clk 0:01:06]}  Qd7 {[%clk 0:00:24]} 19. Qa4 {[%clk 0:01:04]}  h6 {[%clk 0:00:22]} 20. Rd1 {[%clk 0:01:03]}  Qe6 {[%clk 0:00:17]} 21. Rd8+ {[%clk 0:01:02]} 1-0


[Site "https://www.chess.com"]

[Event "Titled Tuesday Blitz December 20 Late 2022"]
[White "Bortnyk, Olexandr"]
[Black "Sokolovsky, Yahli"]
[WhiteFideId "14120828"]
[BlackFideId "2820242"]
[WhiteElo "2723"]
[BlackElo "2316"]
[Result "1-0"]
[Round "03"]
[TimeControl "180+1"]
[Date "2022.12.21"]
[WhiteClock "0:01:24"]
[BlackClock "0:00:03"]

1. e4 {[%clk 0:03:00]}  d6 {[%clk 0:02:59]} 2. d4 {[%clk 0:03:01]}  Nf6 {[%clk 0:03:00]} 3. Nc3 {[%clk 0:02:59]}  g6 {[%clk 0:03:00]} 4. Bg5 {[%clk 0:02:58]}  Bg7 {[%clk 0:03:00]} 5. Qd2 {[%clk 0:02:59]}  a6 {[%clk 0:02:57]} 6. Bh6 {[%clk 0:02:58]}  Bxh6 {[%clk 0:02:56]} 7. Qxh6 {[%clk 0:02:59]}  b5 {[%clk 0:02:57]} 8. e5 {[%clk 0:02:55]}  dxe5 {[%clk 0:02:38]} 9. dxe5 {[%clk 0:02:55]}  b4 {[%clk 0:02:38]} 10. Rd1 {[%clk 0:02:43]}  Nbd7 {[%clk 0:02:07]} 11. Na4 {[%clk 0:02:25]}  Ng4 {[%clk 0:02:07]} 12. Qg7 {[%clk 0:02:25]}  Rf8 {[%clk 0:02:07]} 13. Nf3 {[%clk 0:02:17]}  Bb7 {[%clk 0:01:17]} 14. Ng5 {[%clk 0:02:16]}  e6 {[%clk 0:00:44]} 15. Nxh7 {[%clk 0:02:14]}  Qh4 {[%clk 0:00:44]} 16. g3 {[%clk 0:01:36]}  Qh5 {[%clk 0:00:44]} 17. Be2 {[%clk 0:01:29]}  Bxh1 {[%clk 0:00:34]} 18. Rxd7 {[%clk 0:01:28]}  Kxd7 {[%clk 0:00:21]} 19. Bxg4 {[%clk 0:01:29]}  Qxh2 {[%clk 0:00:20]} 20. Nxf8+ {[%clk 0:01:28]}  Kc6 {[%clk 0:00:14]} 21. Qxf7 {[%clk 0:01:28]}  Qg1+ {[%clk 0:00:14]} 22. Ke2 {[%clk 0:01:28]}  Bd5 {[%clk 0:00:14]} 23. Bxe6 {[%clk 0:01:25]}  Qg2 {[%clk 0:00:03]} 24. Qd7+ {[%clk 0:01:24]} 1-0


[Site "https://www.chess.com"]